fUST/lending_fUST_20241117
["ID","MTS","AMOUNT","RATE_DAILY","PERIOD"]
[342399617,1731789327906,-562.5,0.00026,60]
[342399618,1731789327950,-604.16,0.00026,60]
[342399619,1731789328001,-500.0,0.00026,60]
[342399620,1731789328045,-500.0,0.00026,60]
[342399621,1731789328088,-562.5,0.00026,60]
[342399622,1731789328132,-604.16,0.00026,60]
[342399624,1731789328176,-500.0,0.00026,60]
[342399626,1731789328222,-500.0,0.00026,60]
[342399627,1731789328263,-391.75649364,0.00026,60]
[342399628,1731789328305,-562.5,0.00026,60]
[342399629,1731789328350,-604.16,0.00026,60]
[342399630,1731789328391,-500.0,0.00026,60]
[342399631,1731789328433,-500.0,0.00026,60]
[342399632,1731789328476,-500.0,0.00026,60]
[342399634,1731789328519,-604.16,0.00026,60]
[342399635,1731789328565,-562.5,0.00026,60]
[342399636,1731789328609,-500.0,0.00026,60]
[342399637,1731789328651,-500.0,0.00026,60]
[342399638,1731789328695,-197.20338256,0.00026,60]
[342399640,1731789328744,-350.92489966,0.00026,60]
[342399641,1731789328788,-604.16,0.00026,60]
[342399642,1731789328833,-562.5,0.00026,60]
[342399643,1731789328877,-500.0,0.00026,60]
[342399644,1731789328922,-562.5,0.00026,60]
[342399645,1731789328967,-500.0,0.00026,60]
[342399646,1731789329011,-604.16,0.00026,60]
[342399648,1731789329054,-562.5,0.00026,60]
[342399649,1731789329097,-500.0,0.00026,60]
[342399650,1731789329140,-604.16,0.00026,60]
[342399651,1731789329183,-562.5,0.00026,60]
[342399652,1731789329223,-604.16,0.00026,60]
[342399653,1731789329265,-791.53,0.00026,60]
[342399654,1731789329306,-562.5,0.00026,60]
[342399656,1731789329349,-604.16,0.00026,60]
[342399657,1731789329393,-500.0,0.00026,60]
[342399658,1731789329434,-791.53,0.00026,60]
[342399659,1731789329476,-562.5,0.00026,60]
[342399661,1731789329671,-604.16,0.00026,60]
[342399662,1731789329723,-791.53,0.00026,60]
[342399663,1731789329768,-500.0,0.00026,60]
[342399664,1731789329815,-562.5,0.00026,60]
[342399665,1731789329859,-604.16,0.00026,60]
[342399666,1731789329904,-791.53,0.00026,60]
[342399668,1731789329946,-562.5,0.00026,60]
[342399669,1731789329993,-791.53,0.00026,60]
[342399670,1731789330038,-604.16,0.00026,60]
[342399671,1731789330083,-562.5,0.00026,60]
[342399672,1731789330127,-791.53,0.00026,60]
[342399673,1731789330173,-562.5,0.00026,60]
[342399675,1731789330222,-604.16,0.00026,60]
[342399676,1731789330265,-791.53,0.00026,60]
[342399677,1731789330308,-562.5,0.00026,60]
[342399678,1731789330352,-604.16,0.00026,60]
[342399679,1731789330400,-562.5,0.00026,60]
[342399680,1731789330445,-791.53,0.00026,60]
[342399681,1731789330496,-604.16,0.00026,60]
[342399683,1731789330541,-562.5,0.00026,60]
[342399684,1731789330589,-791.53,0.00026,60]
[342399685,1731789330651,-604.16,0.00026,60]
[342399686,1731789330699,-562.5,0.00026,60]
[342399687,1731789330753,-791.53,0.00026,60]
[342399689,1731789330801,-791.53,0.00026,60]
[342399690,1731789330846,-604.16,0.00026,60]
[342399691,1731789330889,-500.0,0.00026,60]
[342399692,1731789330933,-791.53,0.00026,60]
[342399693,1731789330975,-604.16,0.00026,60]
[342399694,1731789331017,-500.0,0.00026,60]
[342399695,1731789331060,-791.53,0.00026,60]
[342399696,1731789331103,-500.0,0.00026,60]
[342399697,1731789331146,-500.0,0.00026,60]
[342399698,1731789331188,-791.53,0.00026,60]
[342399699,1731789331230,-243.27547669,0.00026,60]
[342399700,1731789331272,-500.0,0.00026,60]
[342399701,1731789331314,-791.53,0.00026,60]
[342399702,1731789331355,-604.16,0.00026,60]
[342399703,1731789331396,-500.0,0.00026,60]
[342399704,1731789331439,-604.32,0.00026,60]
[342399705,1731789331481,-500.0,0.00026,60]
[342399706,1731789331522,-500.0,0.00026,60]
[342399707,1731789331567,-791.53,0.00026,60]
[342399708,1731789331609,-500.0,0.00026,60]
[342399709,1731789331652,-500.0,0.00026,60]
[342399710,1731789331694,-3968.21,0.00026,60]
[342399711,1731789331738,-500.0,0.00026,60]
[342399712,1731789331780,-791.53,0.00026,60]
[342399713,1731789331821,-500.0,0.00026,60]
[342399714,1731789331862,-3968.21,0.00026,60]
[342399715,1731789331903,-500.0,0.00026,60]
[342399716,1731789331945,-791.53,0.00026,60]
[342399717,1731789331988,-500.0,0.00026,60]
[342399718,1731789332030,-3968.21,0.00026,60]
[342399719,1731789332071,-500.0,0.00026,60]
[342399720,1731789332112,-500.0,0.00026,60]
[342399721,1731789332153,-500.0,0.00026,60]
[342399722,1731789332195,-3968.21,0.00026,60]
[342399723,1731789332237,-500.0,0.00026,60]
[342399724,1731789332283,-3968.21,0.00026,60]
[342399725,1731789332327,-524.58839218,0.00026,60]
[342399726,1731789332371,-3968.21,0.00026,60]
[342399727,1731789332415,-500.0,0.00026,60]
[342399728,1731789332461,-500.0,0.00026,60]
[342399729,1731789332507,-3968.21,0.00026,60]
[342399730,1731789332549,-500.0,0.00026,60]
[342399731,1731789332743,-508.41135073,0.00026,60]
[342399732,1731789332787,-3968.21,0.00026,60]
[342399733,1731789332830,-791.53,0.00026,60]
[342399734,1731789332872,-513.38109779,0.00026,60]
[342399735,1731789332917,-3968.21,0.00026,60]
[342399736,1731789332961,-791.53,0.00026,60]
[342399737,1731789333008,-3968.21,0.00026,60]
[342399738,1731789333054,-791.53,0.00026,60]
[342399739,1731789333098,-3657.35362057,0.00026,60]
[342399748,1731789670857,165.635,0.0001568,60]
[342399749,1731789778891,-657.8906005,9.907e-05,2]
[342399770,1731789978870,513.7560944,9.893e-05,2]
[342399861,1731790120857,1806.8629632,9.893e-05,2]
[342399872,1731790146196,250.0,9.886e-05,2]
[342399921,1731790232425,-160.26922661,0.00010758,2]
[342399923,1731790232435,-300.0,0.00010799,2]
[342399925,1731790232447,-300.0,0.00010799,2]
[342399927,1731790232461,-14940.90070973,0.000108,2]
[342399929,1731790232472,-894.48363533,0.000108,2]
[342399931,1731790232481,-1248.98555028,0.00010858,2]
[342399933,1731790232491,-1419.67437852,0.00010858,2]
[342399936,1731790232500,-1558.97478665,0.00010873,2]
[342399937,1731790232511,-500.0,0.00010873,2]
[342399939,1731790232521,-32.06164922,0.00010873,2]
[342399943,1731790232533,-467.93835078,0.00010873,2]
[342399946,1731790232542,-180.24692125,0.00010873,2]
[342399948,1731790232558,-319.75307875,0.00010873,2]
[342399950,1731790232568,-500.0,0.00010873,2]
[342399952,1731790232579,-500.0,0.00010873,2]
[342399954,1731790232590,-500.0,0.00010873,2]
[342399956,1731790232599,-502.91822303,0.00010873,2]
[342399958,1731790232609,-500.0,0.00010873,2]
[342399960,1731790232619,-1265.06657699,0.00010899,2]
[342399962,1731790232629,-238.8904123,0.000109,2]
[342399964,1731790232639,-9301.25518011,0.000109,2]
[342399990,1731790238483,-3096.29564606,0.000109,2]
[342400002,1731790240290,-52223.86504896,0.000109,2]
[342400003,1731790240344,-195695.35199874,0.000109,2]
[342400010,1731790243375,-1246.72017249,0.000109,2]
[342400018,1731790246740,-26543.02950238,0.000109,2]
[342400019,1731790246752,-27565.12249829,0.000109,2]
[342400030,1731790596928,170.764799,9.858e-05,2]
[342400031,1731790597234,170.764799,9.863e-05,2]
[342400032,1731790597457,170.764799,9.868e-05,2]
[342400033,1731790597594,170.764799,9.872e-05,2]
[342400034,1731790597994,170.764799,9.877e-05,2]
[342400035,1731790598219,170.764799,9.882e-05,2]
[342400036,1731790598418,170.764799,9.887e-05,2]
[342400037,1731790598622,170.764799,9.892e-05,2]
[342400038,1731790599926,170.764799,9.897e-05,2]
[342400039,1731790600137,170.764799,9.902e-05,2]
[342400040,1731790600338,170.764799,9.907e-05,2]
[342400055,1731790961070,14893.0775529,9.883e-05,2]
[342400071,1731791093255,500.0,0.00025,120]
[342400072,1731791133389,601.1250705,0.00025,120]
[342400141,1731791405191,192.39,0.00025,120]
[342400193,1731791433327,-1250.56442524,9.832e-05,2]
[342400209,1731791438717,-781.26112946,9.832e-05,2]
[342400210,1731791438728,-281.29170046,9.882e-05,2]
[342400211,1731791438825,-18.70829954,9.882e-05,2]
[342400214,1731791439087,-300.0,9.882e-05,2]
[342400215,1731791439098,-723.33931608,9.883e-05,2]
[342400216,1731791439156,-327.595,9.883e-05,2]
[342400217,1731791439168,-5731.6433518,9.883e-05,2]
[342400232,1731791440425,-1581.6076105,9.883e-05,2]
[342400233,1731791440437,-1642.73716872,9.883e-05,2]
[342400234,1731791440447,-1823.8060022,9.944e-05,2]
[342400235,1731791440456,-241.33762016,0.000108,2]
[342400236,1731791440465,-31243.25311311,0.000108,2]
[342400237,1731791440498,-1268.41937026,0.000108,2]
[342400238,1731791440510,-3271.81767709,0.000108,2]
[342400239,1731791440521,-947.78928911,0.000108,2]
[342400240,1731791440531,-5822.29539155,0.000108,2]
[342400241,1731791440542,-786.35002395,0.000108,2]
[342400242,1731791440551,-1277.70694065,0.00010858,2]
[342400243,1731791440561,-420.0,0.0001087,2]
[342400244,1731791440570,-420.0,0.0001087,2]
[342400245,1731791440579,-385.95776912,0.00010873,2]
[342400262,1731791443593,-114.04223088,0.00010873,2]
[342400263,1731791443603,-609.73175159,0.00010873,2]
[342400264,1731791443612,-316.78257898,0.00010873,2]
[342400267,1731791443650,-183.21742102,0.00010873,2]
[342400268,1731791443660,-500.0,0.00010873,2]
[342400269,1731791443669,-500.0,0.00010873,2]
[342400270,1731791443678,-500.0,0.00010873,2]
[342400271,1731791443687,-500.0,0.00010873,2]
[342400272,1731791443696,-321.57617652,0.00010873,2]
[342400273,1731791443710,-128.09039988,0.00010873,2]
[342400274,1731791443719,-41658.22386828,0.000109,2]
[342400275,1731791443731,-306.24798982,0.000109,2]
[342400334,1731791572932,167.377935,0.00023836,120]
[342400374,1731792525856,1107.65396126,0.00025,120]
[342400376,1731792526699,345.35718363,0.00024,120]
[342400438,1731792634986,-300.0,9.874e-05,2]
[342400440,1731792634995,-300.0,9.874e-05,2]
[342400442,1731792635004,-20250.44570701,9.875e-05,2]
[342400444,1731792635016,-3636.62410549,9.875e-05,2]
[342400446,1731792635025,-1585.9145318,9.952e-05,2]
[342400448,1731792635035,-350.52134652,0.000108,2]
[342400450,1731792635045,-3749.84667568,0.000108,2]
[342400452,1731792635056,-1311.8942382,0.000108,2]
[342400479,1731792638013,-3169.35500425,0.000108,2]
[342400480,1731792638023,-1149.93624654,0.000108,2]
[342400481,1731792638034,-420.0,0.00010861,2]
[342400482,1731792638043,-420.0,0.00010861,2]
[342400483,1731792638053,-327.12052983,0.00010873,2]
[342400484,1731792638063,-500.0,0.00010873,2]
[342400485,1731792638072,-500.0,0.00010873,2]
[342400486,1731792638081,-500.0,0.00010873,2]
[342400487,1731792638093,-500.0,0.00010873,2]
[342400488,1731792638102,-500.0,0.00010873,2]
[342400489,1731792638111,-489.71741966,0.00010899,2]
[342400490,1731792638121,-322.81888791,0.00010899,2]
[342400491,1731792638130,-300.02,0.00010899,2]
[342400492,1731792638139,-2168.80930524,0.00010899,2]
[342400493,1731792638149,-15905.50398442,0.000109,2]
[342400494,1731792638168,-63100.0000005,0.000109,2]
[342400495,1731792638179,-1317.07391835,0.000109,2]
[342400496,1731792638192,-9969.58101689,0.000109,2]
[342400497,1731792638203,-1683.71418326,0.000109,2]
[342400498,1731792638214,-7052.47001969,0.000109,2]
[342400514,1731792639634,-107132.96155845,0.000109,2]
[342400515,1731792639646,-1520.75,0.000109,2]
[342400545,1731792642759,-2975.97006,0.000109,2]
[342400546,1731792642772,-1775.50441999,0.000109,2]
[342400547,1731792642787,-317.97876907,0.000109,2]
[342400548,1731792642800,-4018.44364209,0.000109,2]
[342400564,1731792645776,-436.835,0.000109,2]
[342400569,1731793634338,713.0,0.00015,60]
[342400641,1731793832209,-300.0,9.999e-05,2]
[342400642,1731793832220,-300.0,9.999e-05,2]
[342400643,1731793832229,-215.21259194,0.0001,2]
[342400644,1731793832238,-7301.46312862,0.0001,2]
[342400645,1731793832249,-406.38548919,0.0001,2]
[342400680,1731793839743,-31913.26347867,0.0001,2]
[342400682,1731793839793,-66378.88790352,0.0001,2]
[342400683,1731793839803,-187.37643004,0.000107,2]
[342400684,1731793839813,-187.37643004,0.00010725,2]
[342400685,1731793839822,-187.37643004,0.0001075,2]
[342400686,1731793839832,-187.37643004,0.00010775,2]
[342400687,1731793839841,-36011.06474563,0.000108,2]
[342400688,1731793839852,-341.88670727,0.000108,2]
[342400689,1731793839861,-187.37643004,0.000108,2]
[342400690,1731793839870,-1148.95318149,0.000108,2]
[342400691,1731793839879,-500.0,0.00010873,2]
[342400692,1731793839891,-386.19650745,0.00010873,2]
[342400693,1731793839901,-500.0,0.00010873,2]
[342400694,1731793839910,-500.0,0.00010873,2]
[342400695,1731793839920,-500.0,0.00010873,2]
[342400696,1731793839930,-2168.80930524,0.00010899,2]
[342400697,1731793839939,-297880.13883947,0.000109,2]
[342400720,1731794069390,701.0,0.00025,60]
[342400721,1731794201995,500.0,0.00026,60]
[342400722,1731794223086,500.0,0.00026,60]
[342400723,1731794231405,500.0,0.00026,60]
[342400724,1731794257120,500.0,0.00026,60]
[342400725,1731794267910,500.0,0.00026,60]
[342400726,1731794282868,500.0,0.00026,60]
[342400727,1731794290081,500.0,0.00026,60]
[342400728,1731794300540,500.0,0.00026,60]
[342400732,1731794362796,509.18266769,0.000259,60]
[342400733,1731794375903,1448.91732123,0.000259,60]
[342400734,1731794453718,500.0,0.00026,60]
[342400735,1731794469564,500.0,0.00026,60]
[342400736,1731794481489,500.0,0.00026,60]
[342400737,1731794493255,500.0,0.00026,60]
[342400739,1731794503694,500.0,0.00026,60]
[342400740,1731794511295,500.0,0.00026,60]
[342400741,1731794518352,500.0,0.00026,60]
[342400742,1731794525746,500.0,0.00026,60]
[342400743,1731794533609,500.0,0.00026,60]
[342400744,1731794541945,500.0,0.00026,60]
[342400745,1731794551608,500.0,0.00026,60]
[342400746,1731794574836,400.177918,0.00026,60]
[342400748,1731794686860,245.845,0.000156,60]
[342400833,1731795032363,-333.9160113,0.00010042,2]
[342400853,1731795038495,-81.9042415,0.00010042,2]
[342400854,1731795038505,-286.085,0.00010682,2]
[342400855,1731795038514,-204.81058481,0.00010682,2]
[342400856,1731795038523,-1136.66736699,0.000108,2]
[342400857,1731795038532,-243.7970359,0.000108,2]
[342400858,1731795038541,-300.0,0.00010872,2]
[342400859,1731795038551,-300.0,0.00010872,2]
[342400860,1731795038560,-500.0,0.00010873,2]
[342400861,1731795038570,-500.0,0.00010873,2]
[342400862,1731795038579,-500.0,0.00010873,2]
[342400863,1731795038588,-105.58139418,0.00010873,2]
[342400864,1731795038602,-394.41860582,0.00010873,2]
[342400865,1731795038847,-273.52390506,0.000109,2]
[342400866,1731795038857,-3161.08545235,0.000109,2]
[342400867,1731795038880,-1078.43377426,0.000109,2]
[342400868,1731795038891,-10000.0,0.000109,2]
[342400879,1731795039940,-695.70864234,0.000109,2]
[342400880,1731795039953,-619.71305479,0.000109,2]
[342400881,1731795039965,-261.546,0.000109,2]
[342400882,1731795040097,-97485.43932332,0.000109,2]
[342400916,1731795043304,-43985.74663229,0.000109,2]
[342400917,1731795043316,-17808.3157161,0.000109,2]
[342400918,1731795043328,-15832.87704669,0.000109,2]
[342400919,1731795043345,-72270.05833584,0.000109,2]
[342400920,1731795043356,-847.74798456,0.000109,2]
[342400921,1731795043379,-425.58490074,0.000109,2]
[342400953,1731795046071,-579.99506853,0.000109,2]
[342400964,1731795046202,-684.66197027,0.000109,2]
[342400978,1731795567630,2195.0,0.00025,60]
[342400979,1731795806533,-300.0,9.928e-05,2]
[342400980,1731795806559,-300.0,9.928e-05,2]
[342400981,1731795806587,-9065.0,9.929e-05,2]
[342400984,1731795975434,234.157,0.000247,60]
[342401011,1731796205415,-153.73,0.000199,31]
[342401012,1731796205477,-153.73,0.000199,31]
[342401013,1731796205535,-153.73,0.000199,31]
[342401014,1731796205596,-153.73,0.000199,31]
[342401015,1731796205657,-153.73,0.000199,31]
[342401016,1731796205717,-153.73,0.000199,31]
[342401017,1731796205774,-153.73,0.000199,31]
[342401018,1731796205835,-153.73,0.000199,31]
[342401019,1731796205891,-153.73,0.000199,31]
[342401020,1731796205948,-153.73,0.000199,31]
[342401021,1731796206004,-153.73,0.000199,31]
[342401022,1731796206059,-153.73,0.000199,31]
[342401023,1731796206110,-2049.05101279,0.0002,30]
[342401024,1731796206167,-153.73,0.000216,31]
[342401025,1731796206220,-153.73,0.000216,31]
[342401026,1731796206275,-153.73,0.000216,31]
[342401027,1731796206330,-153.73,0.000216,31]
[342401028,1731796206385,-153.73,0.000216,31]
[342401029,1731796206439,-153.73,0.000216,31]
[342401030,1731796206491,-153.73,0.000216,31]
[342401031,1731796206547,-153.73,0.000216,31]
[342401032,1731796206600,-153.73,0.000216,31]
[342401033,1731796206652,-153.73,0.000216,31]
[342401034,1731796206710,-153.73,0.000216,31]
[342401035,1731796206766,-153.73,0.000216,31]
[342401036,1731796206820,-153.73,0.000216,31]
[342401037,1731796206876,-153.73,0.000216,31]
[342401038,1731796206931,-153.73,0.000216,31]
[342401039,1731796206991,-153.73,0.000216,31]
[342401040,1731796207050,-153.73,0.000216,31]
[342401041,1731796207104,-153.73,0.000216,31]
[342401042,1731796207158,-342694.57259373,0.00022,30]
[342401043,1731796207209,-281481.07880989,0.00022,30]
[342401044,1731796207263,-169163.39758359,0.00022,30]
[342401045,1731796218007,-194712.8368612,0.00022,30]
[342401046,1731796218063,-115060.88005258,0.00022,30]
[342401047,1731796218119,-139824.7544018,0.00022,30]
[342401048,1731796218178,-34116.6508817,0.00022,30]
[342401049,1731796218240,-153.73,0.000233,31]
[342401050,1731796218300,-153.73,0.000233,31]
[342401051,1731796218357,-153.73,0.000233,31]
[342401052,1731796218413,-153.73,0.000233,31]
[342401053,1731796218474,-153.73,0.000233,31]
[342401054,1731796218530,-153.73,0.000233,31]
[342401055,1731796218589,-153.73,0.000233,31]
[342401056,1731796218646,-153.73,0.000233,31]
[342401057,1731796218700,-153.73,0.000233,31]
[342401058,1731796218759,-153.73,0.000233,31]
[342401059,1731796218816,-153.73,0.000233,31]
[342401060,1731796218872,-153.73,0.000233,31]
[342401061,1731796218926,-153.73,0.000233,31]
[342401062,1731796218980,-153.73,0.000233,31]
[342401063,1731796219032,-153.73,0.000233,31]
[342401064,1731796219079,-153.73,0.000233,31]
[342401065,1731796219131,-153.73,0.000233,31]
[342401066,1731796219181,-153.73,0.000233,31]
[342401067,1731796219233,-153.73,0.000249,31]
[342401068,1731796219507,-153.73,0.000249,31]
[342401069,1731796219564,-153.73,0.000249,31]
[342401070,1731796219621,-153.73,0.000249,31]
[342401071,1731796219677,-153.73,0.000249,31]
[342401072,1731796219732,-153.73,0.000249,31]
[342401073,1731796219783,-153.73,0.000249,31]
[342401074,1731796219840,-153.73,0.000249,31]
[342401075,1731796219896,-153.73,0.000249,31]
[342401076,1731796219955,-153.73,0.000249,31]
[342401077,1731796220008,-153.73,0.000249,31]
[342401078,1731796220063,-153.73,0.000249,31]
[342401079,1731796220120,-153.73,0.000249,31]
[342401080,1731796220173,-153.73,0.000249,31]
[342401081,1731796220229,-153.73,0.000249,31]
[342401082,1731796220280,-153.73,0.000249,31]
[342401083,1731796220334,-153.73,0.000249,31]
[342401084,1731796220383,-153.73,0.000249,31]
[342401085,1731796220430,-603.4,0.00025,31]
[342401086,1731796220482,-3000.0,0.00025,31]
[342401087,1731796220533,-4000.0,0.00025,30]
[342401088,1731796220588,-500.0,0.00026,60]
[342401089,1731796220637,-500.0,0.00026,60]
[342401090,1731796220682,-500.0,0.00026,60]
[342401091,1731796220733,-573.87288791,0.00026,60]
[342401092,1731796220781,-301073.32491481,0.00026,30]
[342401154,1731796235111,-300.0,9.928e-05,2]
[342401155,1731796235120,-300.0,9.928e-05,2]
[342401156,1731796235130,-98.53262005,9.929e-05,2]
[342401169,1731796238299,-10119.03233625,9.929e-05,2]
[342401171,1731796238309,-273.73691796,0.0001,2]
[342401173,1731796238318,-6462.31474792,0.0001,2]
[342401176,1731796238330,-782.0063738,0.0001,2]
[342401178,1731796238341,-8013.2763129,0.0001,2]
[342401180,1731796238354,-4811.20356999,0.0001,2]
[342401182,1731796238363,-1000.0,0.0001,2]
[342401184,1731796238372,-228.868,0.00010682,2]
[342401186,1731796238382,-503.72245063,0.00010799,2]
[342401188,1731796238396,-354.08052774,0.000108,2]
[342401190,1731796238406,-37455.4938378,0.000108,2]
[342401192,1731796238415,-560.56339927,0.000108,2]
[342401198,1731796238461,-1024.18528562,0.000108,2]
[342401200,1731796238470,-822.67371893,0.000108,2]
[342401201,1731796238482,-272.71,0.000108,2]
[342401202,1731796238494,-38.15212392,0.000108,2]
[342401203,1731796238504,-490.24969623,0.00010873,2]
[342401204,1731796238515,-9.75030377,0.00010873,2]
[342401205,1731796238524,-500.0,0.00010873,2]
[342401206,1731796238533,-500.0,0.00010873,2]
[342401207,1731796238542,-500.0,0.00010873,2]
[342401208,1731796238551,-1140.29578137,0.000109,2]
[342401209,1731796238563,-4663.04964,0.000109,2]
[342401210,1731796238575,-1638.40108293,0.000109,2]
[342401211,1731796238585,-505.4234493,0.000109,2]
[342401216,1731796240372,-2570.000001,0.000109,2]
[342401217,1731796240443,-61.53016,0.000109,2]
[342401218,1731796241264,-47504.32284327,0.00026,30]
[342401219,1731796241318,-500.0,0.00026,60]
[342401220,1731796241366,-500.0,0.00026,60]
[342401221,1731796241416,-500.0,0.00026,60]
[342401222,1731796241474,-500.0,0.00026,60]
[342401223,1731796241527,-517.76017812,0.00026,60]
[342401224,1731796241584,-500.0,0.00026,60]
[342401225,1731796241636,-500.0,0.00026,60]
[342401226,1731796241692,-500.0,0.00026,60]
[342401227,1731796242023,-503.6278934,0.00026,60]
[342401228,1731796242075,-500.0,0.00026,60]
[342401229,1731796242128,-500.0,0.00026,60]
[342401230,1731796242178,-500.0,0.00026,60]
[342401231,1731796242233,-500.0,0.00026,60]
[342401232,1731796242281,-505.60230731,0.00026,60]
[342401233,1731796242335,-373.52768238,0.00026,30]
[342401234,1731796242386,-500.0,0.00026,60]
[342401235,1731796242435,-500.0,0.00026,60]
[342401236,1731796242487,-627.35172286,0.00026,60]
[342401237,1731796242537,-503.39824282,0.00026,60]
[342401238,1731796242590,-500.0,0.00026,60]
[342401239,1731796242648,-218.67504583,0.00026,60]
[342401240,1731796242705,-500.0,0.00026,60]
[342401241,1731796242757,-538.16940054,0.00026,60]
[342401242,1731796242814,-516.40141174,0.00026,60]
[342401243,1731796242867,-500.0,0.00026,60]
[342401244,1731796242920,-535.54458136,0.00026,60]
[342401245,1731796242972,-502.32079805,0.00026,60]
[342401250,1731796243026,-500.0,0.00026,30]
[342401254,1731796243079,-500.0,0.00026,30]
[342401255,1731796243128,-500.0,0.00026,30]
[342401257,1731796243180,-500.0,0.00026,30]
[342401258,1731796243230,-415.97672754,0.00026,30]
[342401259,1731796243283,-502.69758726,0.00026,60]
[342401260,1731796243332,-500.0,0.00026,60]
[342401261,1731796243384,-500.0,0.00026,60]
[342401265,1731796243435,-609.74428538,0.00026,60]
[342401266,1731796243488,-500.0,0.00026,60]
[342401267,1731796243540,-503.9286857,0.00026,60]
[342401268,1731796243596,-500.0,0.00026,60]
[342401269,1731796243651,-500.0,0.00026,60]
[342401270,1731796243706,-541.68534219,0.00026,60]
[342401271,1731796243757,-500.0,0.00026,60]
[342401272,1731796243816,-500.0,0.00026,60]
[342401273,1731796243869,-500.0,0.00026,60]
[342401274,1731796243920,-500.0,0.00026,60]
[342401275,1731796243975,-500.0,0.00026,60]
[342401276,1731796244025,-455.01368085,0.00026,60]
[342401277,1731796244079,-500.0,0.00026,60]
[342401278,1731796244128,-645.7091537,0.00026,60]
[342401279,1731796244181,-515.34712372,0.00026,60]
[342401280,1731796244230,-500.0,0.00026,60]
[342401281,1731796244296,-590.86076879,0.00026,60]
[342401282,1731796244352,-500.0,0.00026,60]
[342401283,1731796244404,-540.12464629,0.00026,60]
[342401284,1731796244458,-500.0,0.00026,60]
[342401285,1731796244512,-500.0,0.00026,60]
[342401286,1731796244562,-500.0,0.00026,60]
[342401287,1731796244617,-500.0,0.00026,60]
[342401288,1731796244672,-500.0,0.00026,60]
[342401289,1731796244728,-191.8757652,0.00026,60]
[342401290,1731796244782,-500.0,0.00026,60]
[342401291,1731796244834,-500.0,0.00026,60]
[342401292,1731796244890,-500.0,0.00026,60]
[342401293,1731796244943,-500.0,0.00026,60]
[342401294,1731796244996,-500.0,0.00026,60]
[342401295,1731796245046,-500.0,0.00026,60]
[342401296,1731796245098,-500.0,0.00026,60]
[342401297,1731796245153,-500.0,0.00026,60]
[342401298,1731796245202,-500.0,0.00026,60]
[342401299,1731796245254,-554.76081895,0.00026,60]
[342401300,1731796245303,-958.95,0.00026,60]
[342401301,1731796245358,-958.95,0.00026,60]
[342401302,1731796245408,-958.95,0.00026,60]
[342401303,1731796245460,-958.95,0.00026,60]
[342401304,1731796245509,-958.95,0.00026,60]